Workbook

Sheet Ternion Full Rent Schedule
A1: Active
A2: Completed
A4: 8499 Suite 100 - Sawgrass/TCI Building One - 2,200SF
H5: Estimated | I5: 0 | J5: Total
A6: Period | B6: Months | C6: SF | D6: Base Rent | E6: Est. CAM | F6: % Increase | G6: Mo. Base Rent | H6: Monthly CAM | I6: Mo. Sales Tax | J6: Monthly Due | K6: Total Annual | L6: Total Base Rent/Yr. | M6: Rent Commencement
A7: Permits/Construction | B7: 10 | C7: 2200 | D7: 0 | E7: 0 | F7: 0 | G7: 0 | H7: 0 | I7: 0 | J7: 0 | K7: 0 | L7: 0
A8: 1/1/2025 - 12/31/25 | B8: 12 | C8: 2200 | D8: 33 | E8: 9.5 | F8: 0.03 | G8: =(D8*C8)/12 -> 6050 | H8: =(E8*C8)/12 -> 1741.666667 | I8: 0 | J8: =G8+H8+I8 -> 7791.666667 | K8: =J8*12 -> 93500 | L8: =G8*12 -> 72600 | M8: 2025-01-01
A9: 1/1/2026 - 12/31/26 | B9: 12 | C9: 2200 | D9: =D8*1.03 -> 33.99 | E9: =E8*1.03 -> 9.785 | F9: 0.03 | G9: =(D9*C9)/12 -> 6231.5 | H9: =(E9*C9)/12 -> 1793.916667 | I9: 0 | J9: 8025.416667 | K9: =J9*12 -> 96305 | L9: 74778
A10: 1/1/2027 - 12/31/27 | B10: 12 | C10: 2200 | D10: =D9*1.03 -> 35.0097 | E10: 10.07855 | F10: 0.03 | G10: 6418.445 | H10: 1847.734167 | I10: 0 | J10: 8266.179167 | K10: 99194.15 | L10: 77021.34
A11: 1/1/2028 - 12/31/28 | B11: 12 | C11: 2200 | D11: 36.059991 | E11: 10.3809065 | F11: 0.03 | G11: 6610.99835 | H11: 1903.166192 | I11: 0 | J11: 8514.164542 | K11: 102169.9745 | L11: 79331.9802
A12: 1/1/2029 - 12/31/29 | B12: 12 | C12: 2200 | D12: 37.14179073 | E12: 10.6923337 | F12: 0.03 | G12: 6809.328301 | H12: 1960.261177 | I12: 0 | J12: 8769.589478 | K12: 105235.0737 | L12: 81711.93961
A13: 1/1/2030 - 12/31/30 | B13: 12 | C13: 2200 | D13: 38.25604445 | E13: =E12*1.03 -> 11.01310371 | F13: 0.03 | G13: 7013.60815 | H13: 2019.069013 | I13: 0 | J13: 9032.677162 | K13: 108392.1259 | L13: 84163.29779
A14: 1/1/2031 - 12/31/31 | B14: 12 | C14: 2200 | D14: 39.40372579 | E14: 11.34349682 | F14: 0.03 | G14: 7224.016394 | H14: 2079.641083 | I14: 0 | J14: 9303.657477 | K14: 111643.8897 | L14: 86688.19673
A15: 1/1/2032 - 12/31/32 | B15: 12 | C15: 2200 | D15: 40.58583756 | E15: =E14*1.03 -> 11.68380172 | F15: 0.03 | G15: 7440.736886 | H15: 2142.030316 | I15: 0 | J15: 9582.767201 | K15: 114993.2064 | L15: 89288.84263
A16: 1/1/2033 - 12/31/33 | B16: 12 | C16: 2200 | D16: 41.80341269 | E16: =E15*1.03 -> 12.03431577 | F16: 0.03 | G16: 7663.958992 | H16: 2206.291225 | I16: 0 | J16: 9870.250217 | K16: 118443.0026 | L16: 91967.50791
A17: 1/1/2034 - 12/31/34 | B17: 12 | C17: 2200 | D17: 43.05751507 | E17: =E16*1.03 -> 12.39534525 | F17: 0.03 | G17: 7893.877762 | H17: 2272.479962 | I17: 0 | J17: 10166.35772 | K17: 121996.2927 | L17: 94726.53315
L18: =SUM(L7:L17) -> 832277.638
A20: 8499 Suite 200 - AlignLifeChiropractic
H21: Estimated | I21: 0 | J21: Total
A22: Period | B22: Months | C22: SF | D22: Base Rent | E22: Est. CAM | F22: % Increase | G22: Mo. Base Rent | H22: Monthly CAM | I22: Mo. Sales Tax | J22: Monthly Due | K22: Total Annual | L22: Total Base Rent/Yr.
A23: Permits/Construction | B23: 18 | C23: 1702 | D23: 0 | E23: 0 | F23: 0 | G23: 0 | H23: 0 | I23: 0 | J23: 0 | K23: 0 | L23: 0
A24: 4/1/2026 - 3/31/27 | B24: 12 | C24: 1702 | D24: 32.5 | E24: 10 | F24: 0 | G24: =(D24*C24)/12 -> 4609.583333 | H24: =(E24*C24)/12 -> 1418.333333 | I24: 0 | J24: =G24+H24+I24 -> 6027.916667 | K24: =J24*12 -> 72335 | L24: =G24*12 -> 55315 | M24: 2026-04-01
A25: 4/1/2027 - 3/31/28 | B25: 12 | C25: 1702 | D25: =D24*1.03 -> 33.475 | E25: =E24*1.03 -> 10.3 | F25: 0.03 | G25: =(D25*C25)/12 -> 4747.870833 | H25: =(E25*C25)/12 -> 1460.883333 | I25: 0 | J25: 6208.754167 | K25: =J25*12 -> 74505.05 | L25: 56974.45
A26: 4/1/2028 - 3/31/29 | B26: 12 | C26: 1702 | D26: =D25*1.03 -> 34.47925 | E26: 10.609 | F26: 0.03 | G26: 4890.306958 | H26: 1504.709833 | I26: 0 | J26: 6395.016792 | K26: 76740.2015 | L26: 58683.6835
A27: 4/1/2029 - 3/31/30 | B27: 12 | C27: 1702 | D27: 35.5136275 | E27: 10.92727 | F27: 0.03 | G27: 5037.016167 | H27: 1549.851128 | I27: 0 | J27: 6586.867295 | K27: 79042.40754 | L27: 60444.194
A28: 4/1/2030 - 3/31/31 | B28: 12 | C28: 1702 | D28: 36.57903632 | E28: 11.2550881 | F28: 0.03 | G28: 5188.126652 | H28: 1596.346662 | I28: 0 | J28: 6784.473314 | K28: 81413.67977 | L28: 62257.51983
A29: 4/1/2031 - 3/31/32 | B29: 12 | C29: 1702 | D29: 37.67640741 | E29: 11.59274074 | F29: 0.03 | G29: 5343.770452 | H29: 1644.237062 | I29: 0 | J29: 6988.007514 | K29: 83856.09016 | L29: 64125.24542
A30: 4/1/2032 - 3/31/33 | B30: 12 | C30: 1702 | D30: 38.80669964 | E30: 11.94052297 | F30: 0.03 | G30: 5504.083565 | H30: 1693.564174 | I30: 0 | J30: 7197.647739 | K30: 86371.77287 | L30: 66049.00278
A31: 4/1/2033 - 3/31/34 | B31: 12 | C31: 1702 | D31: 39.97090063 | E31: 12.29873865 | F31: 0.03 | G31: 5669.206072 | H31: 1744.371099 | I31: 0 | J31: 7413.577171 | K31: 88962.92606 | L31: 68030.47287
A32: 4/1/2034 - 3/31/35 | B32: 12 | C32: 1702 | D32: 41.17002765 | E32: 12.66770081 | F32: 0.03 | G32: 5839.282254 | H32: 1796.702232 | I32: 0 | J32: 7635.984486 | K32: 91631.81384 | L32: 70071.38705
A33: 4/1/2035 - 3/31/36 | B33: 12 | C33: 1702 | D33: 42.40512847 | E33: 13.04773184 | F33: 0.03 | G33: 6014.460722 | H33: 1850.603299 | I33: 0 | J33: 7865.064021 | K33: 94380.76825 | L33: 72173.52866
K34: =SUM(K23:K33) -> 829239.71 | L34: =SUM(L23:L33) -> 634124.4841
A37: 8487 Suite 100 -1,749SF - Tomalty Dentistry
H38: Estimated | I38: 0 | J38: Total
A39: Period | B39: Months | C39: SF | D39: Base Rent | E39: Est. CAM | F39: % Increase | G39: Mo. Base Rent | H39: Monthly CAM | I39: Mo. Sales Tax | J39: Monthly Due | K39: Total Annual | L39: Total Base Rent/Yr.
A40: 6/1/2024 - 5/31/25 | B40: 12 | C40: 1749 | D40: 30 | E40: 9 | F40: fixed | G40: =(D40*C40)/12 -> 4372.5 | H40: =(E40*C40)/12 -> 1311.75 | I40: 0 | J40: =G40+H40+I40 -> 5684.25 | K40: =J40*12 -> 68211 | L40: =G40*12 -> 52470 | M40: 2024-06-01
A41: 6/1/2025 - 5/31/26 | B41: 12 | C41: 1749 | D41: 30 | E41: =E40*1.03 -> 9.27 | F41: fixed | G41: =(D41*C41)/12 -> 4372.5 | H41: =(E41*C41)/12 -> 1351.1025 | I41: 0 | J41: 5723.6025 | K41: =J41*12 -> 68683.23 | L41: 52470
A42: 6/1/2026 - 5/31/27 | B42: 12 | C42: 1749 | D42: 32 | E42: 9.5481 | F42: fixed | G42: 4664 | H42: 1391.635575 | I42: 0 | J42: 6055.635575 | K42: 72667.6269 | L42: 55968
A43: 6/1/2027 - 5/31/28 | B43: 12 | C43: 1749 | D43: 32 | E43: 9.834543 | F43: fixed | G43: 4664 | H43: 1433.384642 | I43: 0 | J43: 6097.384642 | K43: 73168.61571 | L43: 55968
A44: 6/1/2028 - 5/31/29 | B44: 12 | C44: 1749 | D44: 32 | E44: 10.12957929 | F44: fixed | G44: 4664 | H44: 1476.386182 | I44: 0 | J44: 6140.386182 | K44: 73684.63418 | L44: 55968
A45: 6/1/2029 - 5/31/30 | B45: 12 | C45: 1749 | D45: 37 | E45: 10.43346667 | F45: fixed | G45: 5392.75 | H45: 1520.677767 | I45: 0 | J45: 6913.427767 | K45: 82961.1332 | L45: 64713
A46: 6/1/2030 - 5/31/31 | B46: 12 | C46: 1749 | D46: 37 | E46: 10.74647067 | F46: fixed | G46: 5392.75 | H46: 1566.2981 | I46: 0 | J46: 6959.0481 | K46: 83508.5772 | L46: 64713
A47: 6/1/2031 - 5/31/32 | B47: 12 | C47: 1749 | D47: 37 | E47: 11.06886479 | F47: fixed | G47: 5392.75 | H47: 1613.287043 | I47: 0 | J47: 7006.037043 | K47: 84072.44452 | L47: 64713
A48: 6/1/2032 - 5/31/33 | B48: 12 | C48: 1749 | D48: 37 | E48: 11.40093073 | F48: fixed | G48: 5392.75 | H48: 1661.685654 | I48: 0 | J48: 7054.435654 | K48: 84653.22785 | L48: 64713
A49: 6/1/2033 - 5/31/34 | B49: 12 | C49: 1749 | D49: 37 | E49: 11.74295865 | F49: fixed | G49: 5392.75 | H49: 1711.536224 | I49: 0 | J49: 7104.286224 | K49: 85251.43469 | L49: 64713
L50: =SUM(L40:L49) -> 596409
A52: 8487 Suite 200 - 1,749SF (Young Orthodontics)
H53: Estimated | I53: 0 | J53: Total
A54: Period | B54: Months | C54: SF | D54: Base Rent | E54: Est. CAM | F54: % Increase | G54: Mo. Base Rent | H54: Monthly CAM | I54: Mo. Sales Tax | J54: Monthly Due | K54: Total Annual | L54: Total Base Rent/Yr.
A55: 7/1/2024 - 6/30/25 | B55: 12 | C55: 1749 | D55: 30 | E55: 10 | F55: Fixed | G55: =(D55*C55)/12 -> 4372.5 | H55: =(E55*C55)/12 -> 1457.5 | I55: 0 | J55: =G55+H55+I55 -> 5830 | K55: =J55*12 -> 69960 | L55: =G55*12 -> 52470 | M55: 2024-07-01
A56: 7/1/2025 - 6/30/26 | B56: 12 | C56: 1749 | D56: 30 | E56: =E55*1.03 -> 10.3 | F56: Fixed | G56: =(D56*C56)/12 -> 4372.5 | H56: =(E56*C56)/12 -> 1501.225 | I56: 0 | J56: 5873.725 | K56: =J56*12 -> 70484.7 | L56: 52470
A57: 7/1/2026 - 6/30/27 | B57: 12 | C57: 1749 | D57: 32 | E57: 10.609 | F57: Fixed | G57: 4664 | H57: 1546.26175 | I57: 0 | J57: 6210.26175 | K57: 74523.141 | L57: 55968
A58: 7/1/2027 - 6/30/28 | B58: 12 | C58: 1749 | D58: 32 | E58: 10.92727 | F58: Fixed | G58: 4664 | H58: 1592.649603 | I58: 0 | J58: 6256.649603 | K58: 75079.79523 | L58: 55968
A59: 7/1/2028 - 6/30/29 | B59: 12 | C59: 1749 | D59: 32 | E59: 11.2550881 | F59: Fixed | G59: 4664 | H59: 1640.429091 | I59: 0 | J59: 6304.429091 | K59: 75653.14909 | L59: 55968
A60: 7/1/2029 - 6/30/30 | B60: 12 | C60: 1749 | D60: 37 | E60: 11.59274074 | F60: Fixed | G60: 5392.75 | H60: 1689.641963 | I60: 0 | J60: 7082.391963 | K60: 84988.70356 | L60: 64713
A61: 7/1/2030 - 6/30/31 | B61: 12 | C61: 1749 | D61: 37 | E61: 11.94052297 | F61: Fixed | G61: 5392.75 | H61: 1740.331222 | I61: 0 | J61: 7133.081222 | K61: 85596.97467 | L61: 64713
A62: 7/1/2031 - 6/30/32 | B62: 12 | C62: 1749 | D62: 37 | E62: 12.29873865 | F62: Fixed | G62: 5392.75 | H62: 1792.541159 | I62: 0 | J62: 7185.291159 | K62: 86223.49391 | L62: 64713
A63: 7/1/2032 - 6/30/33 | B63: 12 | C63: 1749 | D63: 37 | E63: 12.66770081 | F63: Fixed | G63: 5392.75 | H63: 1846.317394 | I63: 0 | J63: 7239.067394 | K63: 86868.80872 | L63: 64713
A64: 7/1/2033 - 6/30/34 | B64: 12 | C64: 1749 | D64: 37 | E64: 13.04773184 | F64: Fixed | G64: 5392.75 | H64: 1901.706915 | I64: 0 | J64: 7294.456915 | K64: 87533.48299 | L64: 64713
L65: =SUM(L55:L64) -> 596409
A66: 8475 Suite 100 - 1,200 (Worth Kitchen & Bath)
H67: Estimated | I67: 0 | J67: Total
A68: Period | B68: Months | C68: SF | D68: Base Rent | E68: Est. CAM | F68: % Increase | G68: Mo. Base Rent | H68: Monthly CAM | I68: Mo. Sales Tax | J68: Monthly Due | K68: Total Annual | L68: Total Base Rent/Yr.
A69: Rent Abatement | B69: 10 | C69: 1200 | D69: 0 | E69: 0 | F69: 0 | G69: 0 | H69: 0 | I69: 0 | J69: 0 | K69: 0 | L69: 0
A70: 10/1/2025 - 9/30/2026 | B70: 12 | C70: 1200 | D70: 33 | E70: 10 | F70: 0.03 | G70: =(D70*C70)/12 -> 3300 | H70: =(E70*C70)/12 -> 1000 | I70: 0 | J70: =G70+H70+I70 -> 4300 | K70: =J70*12 -> 51600 | L70: =G70*12 -> 39600 | M70: 2025-10-01
A71: 10/1/2026 - 9/30/2027 | B71: 12 | C71: 1200 | D71: =D70*1.03 -> 33.99 | E71: =E70*1.03 -> 10.3 | F71: 0.03 | G71: =(D71*C71)/12 -> 3399 | H71: =(E71*C71)/12 -> 1030 | I71: 0 | J71: 4429 | K71: =J71*12 -> 53148 | L71: 40788
A72: 10/1/2027 - 9/30/2028 | B72: 12 | C72: 1200 | D72: =D71*1.03 -> 35.0097 | E72: =E71*1.03 -> 10.609 | F72: 0.03 | G72: 3500.97 | H72: 1060.9 | I72: 0 | J72: 4561.87 | K72: 54742.44 | L72: 42011.64
A73: 10/1/2028 - 9/30/2029 | B73: 12 | C73: 1200 | D73: 36.059991 | E73: 10.92727 | F73: 0.03 | G73: 3605.9991 | H73: 1092.727 | I73: 0 | J73: 4698.7261 | K73: 56384.7132 | L73: 43271.9892
A74: 10/1/2029 - 9/30/2030 | B74: 12 | C74: 1200 | D74: 37.14179073 | E74: 11.2550881 | F74: 0.03 | G74: 3714.179073 | H74: 1125.50881 | I74: 0 | J74: 4839.687883 | K74: 58076.2546 | L74: 44570.14888
A75: 10/1/2030 - 9/30/2031 | B75: 12 | C75: 1200 | D75: 38.25604445 | E75: 11.59274074 | F75: 0.03 | G75: 3825.604445 | H75: 1159.274074 | I75: 0 | J75: 4984.878519 | K75: 59818.54223 | L75: 45907.25334
A76: 10/1/2031 - 9/30/2032 | B76: 12 | C76: 1200 | D76: 39.40372579 | E76: 11.94052297 | F76: 0.03 | G76: 3940.372579 | H76: 1194.052297 | I76: 0 | J76: 5134.424875 | K76: 61613.0985 | L76: 47284.47094
A77: 10/1/2032 - 9/30/2033 | B77: 12 | C77: 1200 | D77: 40.58583756 | E77: 12.29873865 | F77: 0.03 | G77: 4058.583756 | H77: 1229.873865 | I77: 0 | J77: 5288.457621 | K77: 63461.49146 | L77: 48703.00507
A78: 10/1/2033 - 9/30/2034 | B78: 12 | C78: 1200 | D78: 41.80341269 | E78: 12.66770081 | F78: 0.03 | G78: 4180.341269 | H78: 1266.770081 | I78: 0 | J78: 5447.11135 | K78: 65365.3362 | L78: 50164.09522
A79: 10/1/2034 - 9/30/2035 | B79: 12 | C79: 1200 | D79: 43.05751507 | E79: 13.04773184 | F79: 0.03 | G79: 4305.751507 | H79: 1304.773184 | I79: 0 | J79: 5610.52469 | K79: 67326.29629 | L79: 51669.01808
L80: =SUM(L70:L79) -> 453969.6207
A82: 8475 Suite 200 - 2,298 - Choice Vision Eye Care
H83: Estimated | I83: 0 | J83: Total
A84: Period | B84: Months | C84: SF | D84: Base Rent | E84: Est. CAM | F84: % Increase | G84: Mo. Base Rent | H84: Monthly CAM | I84: Mo. Sales Tax | J84: Monthly Due | K84: Total Annual | L84: Total Base Rent/Yr.
A85: 11/1/2025 - 10/30/2026 | B85: 12 | C85: 2298 | D85: 36 | E85: 11 | F85: 0 | G85: =(D85*C85)/12 -> 6894 | H85: =(E85*C85)/12 -> 2106.5 | I85: 0 | J85: =G85+H85 -> 9000.5 | K85: =J85*12 -> 108006 | L85: =G85*12 -> 82728
A86: 11/1/2026 - 10/30/2027 | B86: 12 | C86: 2298 | D86: 36 | E86: 11 | F86: 0 | G86: 6894 | H86: 2106.5 | I86: 0 | J86: 9000.5 | K86: 108006 | L86: 82728
A87: 11/1/2027 - 10/30/2028 | B87: 12 | C87: 2298 | D87: 42 | E87: =E86*1.035 -> 11.385 | F87: 0 | G87: 8043 | H87: 2180.2275 | I87: 0 | J87: 10223.2275 | K87: 122678.73 | L87: 96516
A88: 11/1/2028 - 10/30/2029 | B88: 12 | C88: 2298 | D88: =D87*1.035 -> 43.47 | E88: =E87*1.03 -> 11.72655 | F88: 0.035 | G88: 8324.505 | H88: 2245.634325 | I88: 0 | J88: 10570.13933 | K88: 126841.6719 | L88: 99894.06
A89: 11/1/2029 - 10/30/2030 | B89: 12 | C89: 2298 | D89: =D88*1.035 -> 44.99145 | E89: 12.0783465 | F89: 0.035 | G89: 8615.862675 | H89: 2313.003355 | I89: 0 | J89: 10928.86603 | K89: 131146.3924 | L89: 103390.3521
A90: 11/1/2030 - 10/30/2031 | B90: 12 | C90: 2298 | D90: 46.56615075 | E90: 12.4406969 | F90: 0.035 | G90: 8917.417869 | H90: 2382.393455 | I90: 0 | J90: 11299.81132 | K90: 135597.7359 | L90: 107009.0144
A91: 11/1/2031 - 10/30/2032 | B91: 12 | C91: 2298 | D91: 48.19596603 | E91: 12.8139178 | F91: 0.035 | G91: 9229.527494 | H91: 2453.865259 | I91: 0 | J91: 11683.39275 | K91: 140200.713 | L91: 110754.3299
A92: 11/1/2032 - 10/30/2033 | B92: 12 | C92: 2298 | D92: 49.88282484 | E92: 13.19833534 | F92: 0.035 | G92: 9552.560956 | H92: 2527.481217 | I92: 0 | J92: 12080.04217 | K92: 144960.5061 | L92: 114630.7315
A93: 11/1/2033 - 10/30/2034 | B93: 12 | C93: 2298 | D93: 51.62872371 | E93: 13.5942854 | F93: 0.035 | G93: 9886.90059 | H93: 2603.305653 | I93: 0 | J93: 12490.20624 | K93: 149882.4749 | L93: 118642.8071
A94: 11/1/2034 - 10/30/2035 | B94: 12 | C94: 2298 | D94: 53.43572904 | E94: 14.00211396 | F94: 0.035 | G94: 10232.94211 | H94: 2681.404823 | I94: 0 | J94: 12914.34693 | K94: 154972.1632 | L94: 122795.3053
L95: =SUM(L85:L94) -> 1039088.6
A96: CALENDAR YEAR | B96: NET RENT ANNUAL by Calendar Year Actual
B97: 8475 | D97: 8487 | F97: 8499
B98: Worth K&B | C98: Choice Vision | D98: Tomalty | E98: Young | F98: Sawgrass | G98: AlignLife | H98: TOTALS | I98: Monthly | J98: net/mo. | K98: net/yr.
A99: 2026 | B99: =(9*3300)+(3*3399) -> 39897 | C99: =(10*6894)+(2*6894) -> 82728 | D99: =(5*G41)+(7*G42) -> 54510.5 | E99: =(6*G56)+(6*G57) -> 54219 | F99: =12*G9 -> 74778 | G99: =(8*G24) -> 36876.66667 | H99: =SUM(B99:G99) -> 343009.1667 | I99: =H99/12 -> 28584.09722 | J99: =I99-13542 -> 15042.09722 | K99: =J99*12 -> 180505.1667
A100: 2027 | B100: =(9*G71)+(3*G72) -> 41093.91 | C100: =(10*G86)+(2*G87) -> 85026 | D100: 55968 | E100: 55968 | F100: =(12*G10) -> 77021.34 | G100: =(3*G24)+(9*G25) -> 56559.5875 | H100: =SUM(B100:G100) -> 371636.8375 | I100: =H100/12 -> 30969.73646 | J100: =I100-13542 -> 17427.73646 | K100: =J100*12 -> 209132.8375
A101: 2028 | B101: 42326.7273 | C101: =(10*G87)+(2*G88) -> 97079.01 | D101: 55968 | E101: 55968 | F101: =12*G11 -> 79331.9802 | G101: 58256.37513 | H101: 388930.0926 | I101: 32410.84105 | J101: =I101-13542 -> 18868.84105 | K101: 226426.0926
A102: 2029 | B102: 43596.52912 | C102: =(10*G88)+(2*G89) -> 100476.7753 | D102: 61069.25 | E102: 60340.5 | F102: =12*G12 -> 81711.93961 | G102: 60004.06638 | H102: 407199.0605 | I102: 33933.25504
A103: 2030 | B103: 44904.42499 | C103: 103993.4625 | D103: 64713 | E103: 64713 | F103: =(12*G13) -> 84163.29779 | G103: 61804.18837 | H103: 424291.3736 | I103: 35357.61447
A104: 2031 | B104: 46251.55774 | C104: 107633.2337 | D104: 64713 | E104: 64713 | F104: =12*G14 -> 86688.19673 | G104: 63658.31402 | H104: 433657.3022 | I104: 36138.10851
A105: 2032 | B105: 47639.10447 | C105: 111400.3969 | D105: 64713 | E105: 64713 | F105: =12*G15 -> 89288.84263 | G105: 65568.06344 | H105: 443322.4074 | I105: 36943.53395
A106: 2033 | B106: 49068.27761 | C106: 115299.4107 | D106: 64713 | E106: 64713 | F106: =(12*G16) -> 91967.50791 | G106: 67535.10535 | H106: 453296.3016 | I106: 37774.6918
A107: 2034 | B107: 50540.32594 | C107: 119334.8901 | D107: =D106*1.03 -> 66654.39 | E107: =E106*1.03 -> 66654.39 | F107: =12*G17 -> 94726.53315 | G107: 69561.15851 | H107: 467471.6877 | I107: 38955.97398
A108: 2035 | B108: =B107*1.03 -> 52056.53572 | C108: =C107*1.03 -> 122914.9368 | D108: =D107*1.03 -> 68654.0217 | E108: =E107*1.03 -> 68654.0217 | F108: =F107*1.03 -> 97568.32914 | G108: 71647.99326 | H108: 481495.8383 | I108: 40124.65319
A109: TOTALS | B109: =SUM(B99:B108) -> 457374.3929 | C109: 1045886.116 | D109: 621676.1617 | E109: 620655.9117 | F109: 857245.9672 | G109: 611471.5186 | H109: 4214310.068
A110: By Building | B110: =B109+C109 -> 1503260.509 | D110: =D109+E109 -> 1242332.073 | F110: =F109+G109 -> 1468717.486

Sheet Sheet1
